[Event "Early-Titled-Tuesday-Blitz-October-17-2023"]
[Site "Chess.com"]
[Date "2023.10.17"]
[Round "9"]
[White "KIEV-1"]
[Black "UK_23"]
[Result "1/2-1/2"]
[WhiteElo "2289"]
[BlackElo "2406"]
[TimeControl "180+1"]
[EndTime "9:48:44 PDT"]
[Termination "Game drawn - insufficient material"]

1. e4 {[%clk 0:03:00.9]} 1... e5 {[%clk 0:03:00.1]} 2. Nf3 {[%clk 0:03:00.8]}
2... Nc6 {[%clk 0:03:00.8]} 3. Bc4 {[%clk 0:03:00.9]} 3... Nf6 {[%clk
0:03:00.3]} 4. d3 {[%clk 0:03:01.4]} 4... Be7 {[%clk 0:03:00.1]} 5. Nc3 {[%clk
0:03:01.6]} 5... O-O {[%clk 0:02:59.5]} 6. h3 {[%clk 0:03:02]} 6... d6 {[%clk
0:02:59.7]} 7. Be3 {[%clk 0:03:02.2]} 7... Na5 {[%clk 0:02:58.2]} 8. Bb3 {[%clk
0:03:02.2]} 8... c5 {[%clk 0:02:56.6]} 9. Qd2 {[%clk 0:02:59.5]} 9... a6 {[%clk
0:02:51.8]} 10. Bd5 {[%clk 0:02:58.2]} 10... Nxd5 {[%clk 0:02:46.3]} 11. Nxd5
{[%clk 0:02:57.7]} 11... Nc6 {[%clk 0:02:42.7]} 12. Bg5 {[%clk 0:02:16.7]} 12...
Bxg5 {[%clk 0:02:30.5]} 13. Nxg5 {[%clk 0:02:11.5]} 13... Be6 {[%clk 0:02:20.1]}
14. Nxe6 {[%clk 0:01:42.9]} 14... fxe6 {[%clk 0:02:21]} 15. Ne3 {[%clk
0:01:40.7]} 15... b5 {[%clk 0:02:12]} 16. O-O {[%clk 0:01:34.3]} 16... Rf4
{[%clk 0:01:58.6]} 17. a4 {[%clk 0:01:17.6]} 17... b4 {[%clk 0:01:57.4]} 18. g3
{[%clk 0:01:04.4]} 18... Rf7 {[%clk 0:01:50]} 19. f4 {[%clk 0:00:58.5]} 19...
exf4 {[%clk 0:01:47.6]} 20. gxf4 {[%clk 0:00:58.7]} 20... Qh4 {[%clk 0:01:45.1]}
21. Qh2 {[%clk 0:00:45.2]} 21... Raf8 {[%clk 0:01:40.3]} 22. Ng2 {[%clk
0:00:42.4]} 22... Qh6 {[%clk 0:01:36.2]} 23. c3 {[%clk 0:00:42]} 23... Qf6
{[%clk 0:01:18]} 24. Rac1 {[%clk 0:00:39.8]} 24... bxc3 {[%clk 0:01:16.6]} 25.
bxc3 {[%clk 0:00:40.3]} 25... Rb8 {[%clk 0:01:14]} 26. f5 {[%clk 0:00:34.4]}
26... Rbf8 {[%clk 0:00:31.6]} 27. Qxd6 {[%clk 0:00:21.6]} 27... exf5 {[%clk
0:00:29.3]} 28. Qxf6 {[%clk 0:00:20.5]} 28... Rxf6 {[%clk 0:00:29.4]} 29. exf5
{[%clk 0:00:21.2]} 29... Rxf5 {[%clk 0:00:28.3]} 30. Rxf5 {[%clk 0:00:22.1]}
30... Rxf5 {[%clk 0:00:28.8]} 31. Rf1 {[%clk 0:00:22.8]} 31... Rxf1+ {[%clk
0:00:26.7]} 32. Kxf1 {[%clk 0:00:23.7]} 32... Ne5 {[%clk 0:00:27.4]} 33. Ke2
{[%clk 0:00:23.5]} 33... Kf7 {[%clk 0:00:27.8]} 34. Ke3 {[%clk 0:00:22.9]} 34...
Ke6 {[%clk 0:00:28.2]} 35. Nf4+ {[%clk 0:00:23]} 35... Kd6 {[%clk 0:00:28.7]}
36. d4 {[%clk 0:00:23.1]} 36... Nc4+ {[%clk 0:00:26.8]} 37. Ke4 {[%clk
0:00:22.1]} 37... Nb2 {[%clk 0:00:22.8]} 38. a5 {[%clk 0:00:21.9]} 38... c4
{[%clk 0:00:20.1]} 39. Nh5 {[%clk 0:00:15.3]} 39... g6 {[%clk 0:00:19.7]} 40.
Nf6 {[%clk 0:00:15]} 40... Na4 {[%clk 0:00:20.6]} 41. Nxh7 {[%clk 0:00:14.9]}
41... Nxc3+ {[%clk 0:00:20.8]} 42. Ke3 {[%clk 0:00:12.2]} 42... Nd5+ {[%clk
0:00:20.1]} 43. Ke4 {[%clk 0:00:11.9]} 43... c3 {[%clk 0:00:19]} 44. Kd3 {[%clk
0:00:12]} 44... Kc6 {[%clk 0:00:18.2]} 45. h4 {[%clk 0:00:11.9]} 45... Kb5
{[%clk 0:00:18.1]} 46. Nf8 {[%clk 0:00:11.5]} 46... Nf4+ {[%clk 0:00:17]} 47.
Kxc3 {[%clk 0:00:11.2]} 47... Kxa5 {[%clk 0:00:17.8]} 48. Kc4 {[%clk 0:00:11.3]}
48... Kb6 {[%clk 0:00:18.1]} 49. d5 {[%clk 0:00:11.4]} 49... Kc7 {[%clk
0:00:18.6]} 50. Kc5 {[%clk 0:00:09.5]} 50... a5 {[%clk 0:00:17.5]} 51. Nxg6
{[%clk 0:00:08.3]} 51... Nxg6 {[%clk 0:00:17.4]} 52. h5 {[%clk 0:00:09]} 52...
Nh8 {[%clk 0:00:17]} 53. Kb5 {[%clk 0:00:09.2]} 53... Kd6 {[%clk 0:00:17.4]} 54.
Kxa5 {[%clk 0:00:09.8]} 54... Kxd5 {[%clk 0:00:18.2]} 55. h6 {[%clk 0:00:09.7]}
55... Ke5 {[%clk 0:00:19.1]} 56. h7 {[%clk 0:00:10.3]} 56... Kf6 {[%clk
0:00:20]} 57. Kb6 {[%clk 0:00:09.7]} 57... Kg7 {[%clk 0:00:20.9]} 58. Kc7 {[%clk
0:00:10.6]} 58... Kf7 {[%clk 0:00:21.4]} 59. Kd7 {[%clk 0:00:11.5]} 59... Kg7
{[%clk 0:00:21.8]} 60. Kd6 {[%clk 0:00:12.4]} 60... Kxh7 {[%clk 0:00:22.7]}
1/2-1/2

[Event "Early-Titled-Tuesday-Blitz-October-17-2023"]
[Site "Chess.com"]
[Date "2023.10.17"]
[Round "9"]
[White "alexrustemov"]
[Black "LeoLV10"]
[Result "0-1"]
[WhiteElo "2780"]
[BlackElo "2597"]
[TimeControl "180+1"]
[EndTime "9:48:45 PDT"]
[Termination "LeoLV10 won on time"]

1. d4 {[%clk 0:03:00.9]} 1... Nf6 {[%clk 0:02:55.7]} 2. c4 {[%clk 0:03:01.1]}
2... e6 {[%clk 0:02:55.5]} 3. Nf3 {[%clk 0:03:01.4]} 3... b6 {[%clk 0:02:48.8]}
4. a3 {[%clk 0:03:01]} 4... Bb7 {[%clk 0:02:48]} 5. Nc3 {[%clk 0:03:00.5]} 5...
d6 {[%clk 0:02:45.2]} 6. Qc2 {[%clk 0:02:58.4]} 6... Nbd7 {[%clk 0:02:44.2]} 7.
e4 {[%clk 0:02:57.4]} 7... e5 {[%clk 0:02:43.8]} 8. Be2 {[%clk 0:02:54.3]} 8...
Be7 {[%clk 0:02:43.3]} 9. O-O {[%clk 0:02:53.9]} 9... O-O {[%clk 0:02:41.1]} 10.
Be3 {[%clk 0:02:46.3]} 10... Re8 {[%clk 0:02:40.8]} 11. Rad1 {[%clk 0:02:43]}
11... exd4 {[%clk 0:02:38.4]} 12. Nxd4 {[%clk 0:02:42.5]} 12... Bf8 {[%clk
0:02:39.3]} 13. f3 {[%clk 0:02:42.1]} 13... Ne5 {[%clk 0:02:30.7]} 14. Rfe1
{[%clk 0:02:40.2]} 14... a6 {[%clk 0:02:28.5]} 15. Bf1 {[%clk 0:02:38.3]} 15...
h6 {[%clk 0:02:20.8]} 16. Nf5 {[%clk 0:02:37.4]} 16... Bc8 {[%clk 0:02:17]} 17.
Ng3 {[%clk 0:02:31.8]} 17... Be6 {[%clk 0:02:11.1]} 18. Nd5 {[%clk 0:02:29.4]}
18... Bxd5 {[%clk 0:01:48.9]} 19. cxd5 {[%clk 0:02:27.1]} 19... Qd7 {[%clk
0:01:41.5]} 20. Rc1 {[%clk 0:02:22.1]} 20... Rec8 {[%clk 0:01:40.2]} 21. Red1
{[%clk 0:02:15.4]} 21... b5 {[%clk 0:01:33.7]} 22. Nf5 {[%clk 0:02:13.8]} 22...
c5 {[%clk 0:01:32.2]} 23. dxc6 {[%clk 0:02:08.6]} 23... Rxc6 {[%clk 0:01:32]}
24. Qd2 {[%clk 0:02:06.6]} 24... Rac8 {[%clk 0:01:31.5]} 25. Rxc6 {[%clk
0:02:04.9]} 25... Rxc6 {[%clk 0:01:20]} 26. Bd4 {[%clk 0:02:03.9]} 26... Qe6
{[%clk 0:01:14.4]} 27. Ne3 {[%clk 0:01:55.8]} 27... Qb3 {[%clk 0:01:02.7]} 28.
Bc3 {[%clk 0:01:53.8]} 28... Qe6 {[%clk 0:00:55.3]} 29. Nd5 {[%clk 0:01:53.3]}
29... Rc8 {[%clk 0:00:45.6]} 30. h3 {[%clk 0:01:44.2]} 30... Nxd5 {[%clk
0:00:44.7]} 31. Qxd5 {[%clk 0:01:43.7]} 31... Qg6 {[%clk 0:00:40.1]} 32. Kh1
{[%clk 0:01:40.8]} 32... Qg3 {[%clk 0:00:38.1]} 33. Qd2 {[%clk 0:01:28]} 33...
Be7 {[%clk 0:00:27.6]} 34. Qe1 {[%clk 0:01:26.9]} 34... Qg6 {[%clk 0:00:26.6]}
35. Qf2 {[%clk 0:01:19.7]} 35... Qh5 {[%clk 0:00:24.7]} 36. Be2 {[%clk
0:01:18.3]} 36... Bh4 {[%clk 0:00:21.5]} 37. Qe3 {[%clk 0:01:17.5]} 37... Ng6
{[%clk 0:00:18.4]} 38. Rxd6 {[%clk 0:01:06.9]} 38... Bg3 {[%clk 0:00:18.8]} 39.
Rd5 {[%clk 0:00:55.9]} 39... Qh4 {[%clk 0:00:19]} 40. Bf1 {[%clk 0:00:54.7]}
40... Bf4 {[%clk 0:00:18.6]} 41. Qd4 {[%clk 0:00:53.4]} 41... f6 {[%clk
0:00:17.6]} 42. Qg1 {[%clk 0:00:37.5]} 42... Qg3 {[%clk 0:00:16.6]} 43. Rd1
{[%clk 0:00:37.9]} 43... Bb8 {[%clk 0:00:12.9]} 44. Be1 {[%clk 0:00:36]} 44...
Qf4 {[%clk 0:00:12.1]} 45. g3 {[%clk 0:00:35.2]} 45... Qxf3+ {[%clk 0:00:11.8]}
46. Kh2 {[%clk 0:00:12.5]} 46... Qxd1 {[%clk 0:00:12.7]} 47. Bg2 {[%clk
0:00:08.4]} 47... Nh4 {[%clk 0:00:11.5]} 48. Qf2 {[%clk 0:00:04.6]} 48... Rc2
{[%clk 0:00:11.5]} 0-1

[Event "Early-Titled-Tuesday-Blitz-October-17-2023"]
[Site "Chess.com"]
[Date "2023.10.17"]
[Round "9"]
[White "m_ezat"]
[Black "kingofthenil"]
[Result "1/2-1/2"]
[WhiteElo "2566"]
[BlackElo "2732"]
[TimeControl "180+1"]
[EndTime "9:48:46 PDT"]
[Termination "Game drawn - insufficient material"]

1. d4 {[%clk 0:02:44.7]} 1... d5 {[%clk 0:02:58.1]} 2. c4 {[%clk 0:02:44]} 2...
c6 {[%clk 0:02:57.5]} 3. Nc3 {[%clk 0:02:43.1]} 3... Nf6 {[%clk 0:02:58]} 4.
cxd5 {[%clk 0:02:31.7]} 4... Nxd5 {[%clk 0:02:58.9]} 5. e4 {[%clk 0:02:30.4]}
5... Nxc3 {[%clk 0:02:58.5]} 6. bxc3 {[%clk 0:02:31.3]} 6... e5 {[%clk
0:02:59.1]} 7. a3 {[%clk 0:02:30.1]} 7... Nd7 {[%clk 0:02:57.4]} 8. Nf3 {[%clk
0:02:29.5]} 8... exd4 {[%clk 0:02:57.9]} 9. cxd4 {[%clk 0:02:29.7]} 9... Be7
{[%clk 0:02:57.1]} 10. Bd3 {[%clk 0:02:28.8]} 10... O-O {[%clk 0:02:58]} 11. e5
{[%clk 0:02:28.3]} 11... Re8 {[%clk 0:02:58.9]} 12. O-O {[%clk 0:02:21]} 12...
Nf8 {[%clk 0:02:59.8]} 13. h3 {[%clk 0:02:20.6]} 13... Be6 {[%clk 0:02:59.9]}
14. Rb1 {[%clk 0:02:17.6]} 14... b5 {[%clk 0:03:00]} 15. Be4 {[%clk 0:02:06.9]}
15... Bd5 {[%clk 0:02:59.6]} 16. Qc2 {[%clk 0:02:04]} 16... a6 {[%clk
0:02:47.6]} 17. Rd1 {[%clk 0:01:54.3]} 17... Bxe4 {[%clk 0:02:43.7]} 18. Qxe4
{[%clk 0:01:50.1]} 18... Qd5 {[%clk 0:02:44.6]} 19. Qc2 {[%clk 0:01:40.7]} 19...
Ne6 {[%clk 0:02:43.2]} 20. a4 {[%clk 0:01:29.9]} 20... Red8 {[%clk 0:02:41.5]}
21. Be3 {[%clk 0:01:23.5]} 21... h6 {[%clk 0:02:36.8]} 22. Rdc1 {[%clk 0:01:20]}
22... Rdc8 {[%clk 0:02:36.3]} 23. Qd1 {[%clk 0:01:04]} 23... a5 {[%clk
0:02:32.5]} 24. Qb3 {[%clk 0:00:56.4]} 24... Qxb3 {[%clk 0:02:27.3]} 25. Rxb3
{[%clk 0:00:55.6]} 25... bxa4 {[%clk 0:02:28.2]} 26. Rbc3 {[%clk 0:00:56.2]}
26... a3 {[%clk 0:02:24.1]} 27. d5 {[%clk 0:00:49.3]} 27... Nd8 {[%clk
0:02:08.8]} 28. d6 {[%clk 0:00:48.6]} 28... Bf8 {[%clk 0:02:08.6]} 29. Rxa3
{[%clk 0:00:47.3]} 29... f6 {[%clk 0:02:05.4]} 30. exf6 {[%clk 0:00:33]} 30...
Bxd6 {[%clk 0:02:04.6]} 31. Rd3 {[%clk 0:00:32.5]} 31... Nf7 {[%clk 0:02:03.3]}
32. fxg7 {[%clk 0:00:31.9]} 32... a4 {[%clk 0:02:03.4]} 33. Bd4 {[%clk
0:00:30.6]} 33... c5 {[%clk 0:02:01.7]} 34. Ba1 {[%clk 0:00:29.5]} 34... a3
{[%clk 0:01:56.8]} 35. Nd2 {[%clk 0:00:28.5]} 35... a2 {[%clk 0:01:55.9]} 36.
Nc4 {[%clk 0:00:28]} 36... Rcb8 {[%clk 0:01:45.1]} 37. Nxd6 {[%clk 0:00:24.9]}
37... Rb1 {[%clk 0:01:45.2]} 38. Rdd1 {[%clk 0:00:21.4]} 38... Rxc1 {[%clk
0:01:35.7]} 39. Rxc1 {[%clk 0:00:21]} 39... Nxd6 {[%clk 0:01:36.6]} 40. Rxc5
{[%clk 0:00:19.5]} 40... Rb8 {[%clk 0:01:36.8]} 41. Be5 {[%clk 0:00:07.4]} 41...
Rb1+ {[%clk 0:01:30.4]} 42. Kh2 {[%clk 0:00:07.4]} 42... a1=Q {[%clk 0:01:31.3]}
43. Bxa1 {[%clk 0:00:07.3]} 43... Rxa1 {[%clk 0:01:32.2]} 44. Rc6 {[%clk
0:00:07.7]} 44... Nf7 {[%clk 0:01:32.4]} 45. Rg6 {[%clk 0:00:07.9]} 45... Ra8
{[%clk 0:01:23.4]} 46. f4 {[%clk 0:00:07.7]} 46... Kh7 {[%clk 0:01:23.6]} 47.
g8=Q+ {[%clk 0:00:07]} 47... Rxg8 {[%clk 0:01:24.2]} 48. Rxg8 {[%clk 0:00:07.7]}
48... Kxg8 {[%clk 0:01:25.1]} 49. g4 {[%clk 0:00:07.9]} 49... Nd8 {[%clk
0:01:05.7]} 50. h4 {[%clk 0:00:07.9]} 50... Ne6 {[%clk 0:01:06.1]} 51. Kg3
{[%clk 0:00:07.6]} 51... Kf7 {[%clk 0:00:56.3]} 52. h5 {[%clk 0:00:07.8]} 52...
Kf6 {[%clk 0:00:52]} 53. g5+ {[%clk 0:00:07.8]} 53... Nxg5 {[%clk 0:00:39.4]}
54. fxg5+ {[%clk 0:00:08.7]} 54... Kxg5 {[%clk 0:00:40.3]} 55. Kh3 {[%clk
0:00:09]} 55... Kxh5 {[%clk 0:00:41.2]} 56. Kg3 {[%clk 0:00:09.4]} 56... Kg5
{[%clk 0:00:42.1]} 57. Kh3 {[%clk 0:00:09.8]} 57... h5 {[%clk 0:00:43]} 58. Kg3
{[%clk 0:00:10.1]} 58... h4+ {[%clk 0:00:43.9]} 59. Kh3 {[%clk 0:00:10.4]} 59...
Kh5 {[%clk 0:00:44.8]} 60. Kh2 {[%clk 0:00:10.6]} 60... Kg4 {[%clk 0:00:45.7]}
61. Kg2 {[%clk 0:00:11.1]} 61... h3+ {[%clk 0:00:46.6]} 62. Kh2 {[%clk
0:00:11.6]} 62... Kh4 {[%clk 0:00:47.5]} 63. Kh1 {[%clk 0:00:11.9]} 63... Kg3
{[%clk 0:00:48.4]} 64. Kg1 {[%clk 0:00:12.3]} 64... Kg4 {[%clk 0:00:48.3]} 65.
Kh1 {[%clk 0:00:12.6]} 65... Kf3 {[%clk 0:00:47]} 66. Kg1 {[%clk 0:00:12.9]}
66... Kg4 {[%clk 0:00:47.9]} 67. Kh1 {[%clk 0:00:13.4]} 67... Kg3 {[%clk
0:00:48.1]} 68. Kg1 {[%clk 0:00:14.1]} 68... h2+ {[%clk 0:00:48.8]} 69. Kh1
{[%clk 0:00:14.7]} 69... Kf2 {[%clk 0:00:49.2]} 70. Kxh2 {[%clk 0:00:14.6]}
1/2-1/2

[Event "Early-Titled-Tuesday-Blitz-October-17-2023"]
[Site "Chess.com"]
[Date "2023.10.17"]
[Round "9"]
[White "Polish_fighter3000"]
[Black "Firouzja2003"]
[Result "1/2-1/2"]
[WhiteElo "3052"]
[BlackElo "3093"]
[TimeControl "180+1"]
[EndTime "9:48:49 PDT"]
[Termination "Game drawn by repetition"]

1. e4 {[%clk 0:03:00.9]} 1... c6 {[%clk 0:03:00.1]} 2. Nf3 {[%clk 0:03:00.5]}
2... d5 {[%clk 0:03:00.3]} 3. d3 {[%clk 0:02:59.7]} 3... Qc7 {[%clk 0:02:53.7]}
4. exd5 {[%clk 0:02:52.3]} 4... cxd5 {[%clk 0:02:54.6]} 5. c4 {[%clk 0:02:52.5]}
5... Nf6 {[%clk 0:02:54]} 6. Nc3 {[%clk 0:02:51.6]} 6... e6 {[%clk 0:02:51.8]}
7. a3 {[%clk 0:02:50.4]} 7... dxc4 {[%clk 0:02:49.3]} 8. dxc4 {[%clk 0:02:51.3]}
8... Nc6 {[%clk 0:02:47.3]} 9. g3 {[%clk 0:02:38.7]} 9... Be7 {[%clk 0:02:36.8]}
10. Bg2 {[%clk 0:02:36.5]} 10... O-O {[%clk 0:02:36]} 11. O-O {[%clk 0:02:33.7]}
11... Rd8 {[%clk 0:02:32.4]} 12. Qe2 {[%clk 0:02:31.8]} 12... Na5 {[%clk
0:02:28.8]} 13. Nd2 {[%clk 0:02:05.3]} 13... Bd7 {[%clk 0:02:15.5]} 14. b4
{[%clk 0:02:00.5]} 14... Nxc4 {[%clk 0:01:53.6]} 15. Qxc4 {[%clk 0:01:58.2]}
15... Qxc4 {[%clk 0:01:53.4]} 16. Nxc4 {[%clk 0:01:59.1]} 16... Rac8 {[%clk
0:01:53.8]} 17. Na5 {[%clk 0:01:53.8]} 17... Rxc3 {[%clk 0:01:53.8]} 18. Nxb7
{[%clk 0:01:52.8]} 18... Rdc8 {[%clk 0:01:48.7]} 19. Bd2 {[%clk 0:01:32.2]}
19... Rc2 {[%clk 0:01:40.3]} 20. Be3 {[%clk 0:01:31.6]} 20... Bc6 {[%clk
0:01:19.9]} 21. Bxc6 {[%clk 0:01:25.3]} 21... R8xc6 {[%clk 0:01:13.3]} 22. Na5
{[%clk 0:01:25.4]} 22... Rc7 {[%clk 0:01:13]} 23. Rfc1 {[%clk 0:01:25.1]} 23...
a6 {[%clk 0:01:02.7]} 24. Rxc2 {[%clk 0:01:24.2]} 24... Rxc2 {[%clk 0:01:03.6]}
25. Rc1 {[%clk 0:01:24.4]} 25... Rxc1+ {[%clk 0:01:02.1]} 26. Bxc1 {[%clk
0:01:25.3]} 26... Nd5 {[%clk 0:01:01.7]} 27. Nc6 {[%clk 0:01:20.5]} 27... Bd6
{[%clk 0:00:55.7]} 28. Bb2 {[%clk 0:01:08.9]} 28... Kf8 {[%clk 0:00:53.1]} 29.
f4 {[%clk 0:01:05.6]} 29... f6 {[%clk 0:00:51.9]} 30. Kf2 {[%clk 0:01:04.2]}
30... Ke8 {[%clk 0:00:52.2]} 31. Nd4 {[%clk 0:01:00.5]} 31... Kd7 {[%clk
0:00:52.3]} 32. Nb3 {[%clk 0:00:57.3]} 32... Nb6 {[%clk 0:00:43.7]} 33. Ke2
{[%clk 0:00:55.5]} 33... Nc4 {[%clk 0:00:41]} 34. Bc1 {[%clk 0:00:55.3]} 34...
Kc6 {[%clk 0:00:40.9]} 35. Kd3 {[%clk 0:00:52.7]} 35... Kd5 {[%clk 0:00:40.8]}
36. Nd2 {[%clk 0:00:52]} 36... Nxd2 {[%clk 0:00:34.3]} 37. Bxd2 {[%clk
0:00:52.9]} 37... e5 {[%clk 0:00:34.9]} 38. fxe5 {[%clk 0:00:44.4]} 38... fxe5
{[%clk 0:00:35.8]} 39. a4 {[%clk 0:00:23.5]} 39... e4+ {[%clk 0:00:33.7]} 40.
Ke3 {[%clk 0:00:24.1]} 40... Kc4 {[%clk 0:00:32]} 41. b5 {[%clk 0:00:19.5]}
41... axb5 {[%clk 0:00:30.7]} 42. axb5 {[%clk 0:00:20.4]} 42... Kxb5 {[%clk
0:00:28.4]} 43. Kxe4 {[%clk 0:00:20.7]} 43... Kc6 {[%clk 0:00:28.8]} 44. Kf5
{[%clk 0:00:21.2]} 44... Kd7 {[%clk 0:00:25.5]} 45. Bc3 {[%clk 0:00:21.3]} 45...
Bf8 {[%clk 0:00:25.3]} 46. g4 {[%clk 0:00:17.9]} 46... Ke7 {[%clk 0:00:19.3]}
47. Bb4+ {[%clk 0:00:15.9]} 47... Kf7 {[%clk 0:00:19.9]} 48. Bxf8 {[%clk
0:00:16.5]} 48... Kxf8 {[%clk 0:00:20.8]} 49. Ke6 {[%clk 0:00:17]} 49... Ke8
{[%clk 0:00:20.9]} 50. h4 {[%clk 0:00:12.1]} 50... Kf8 {[%clk 0:00:21]} 51. g5
{[%clk 0:00:11]} 51... Ke8 {[%clk 0:00:21.5]} 52. h5 {[%clk 0:00:08.1]} 52...
Kf8 {[%clk 0:00:22]} 53. g6 {[%clk 0:00:03.5]} 53... hxg6 {[%clk 0:00:20]} 54.
hxg6 {[%clk 0:00:04.4]} 54... Ke8 {[%clk 0:00:20.5]} 55. Kd6 {[%clk 0:00:05.1]}
55... Kd8 {[%clk 0:00:20.9]} 56. Ke6 {[%clk 0:00:05.8]} 56... Ke8 {[%clk
0:00:21.5]} 57. Kd6 {[%clk 0:00:06.5]} 57... Kd8 {[%clk 0:00:22.2]} 58. Ke6
{[%clk 0:00:07.1]} 58... Ke8 {[%clk 0:00:23]} 1/2-1/2

[Event "Early-Titled-Tuesday-Blitz-October-17-2023"]
[Site "Chess.com"]
[Date "2023.10.17"]
[Round "9"]
[White "Happy1712Drummer"]
[Black "BeautiFullMindChess"]
[Result "1-0"]
[WhiteElo "2381"]
[BlackElo "2269"]
[TimeControl "180+1"]
[EndTime "9:48:49 PDT"]
[Termination "Happy1712Drummer won by resignation"]

1. e4 {[%clk 0:03:00.9]} 1... c5 {[%clk 0:02:59.2]} 2. Nf3 {[%clk 0:02:59.7]}
2... d6 {[%clk 0:02:59.7]} 3. Bb5+ {[%clk 0:02:59.3]} 3... Bd7 {[%clk
0:02:59.3]} 4. Bxd7+ {[%clk 0:02:59.9]} 4... Qxd7 {[%clk 0:03:00.2]} 5. O-O
{[%clk 0:02:59.8]} 5... Nc6 {[%clk 0:03:00.7]} 6. d3 {[%clk 0:02:59.7]} 6... Nf6
{[%clk 0:03:00.6]} 7. Bg5 {[%clk 0:02:59.8]} 7... e6 {[%clk 0:02:57.1]} 8. Bxf6
{[%clk 0:02:59.8]} 8... gxf6 {[%clk 0:02:57.7]} 9. Nc3 {[%clk 0:02:59.9]} 9...
Be7 {[%clk 0:02:40.8]} 10. d4 {[%clk 0:02:58.4]} 10... cxd4 {[%clk 0:02:39.1]}
11. Nxd4 {[%clk 0:02:58.4]} 11... O-O-O {[%clk 0:02:26.3]} 12. Ncb5 {[%clk
0:02:45.1]} 12... Kb8 {[%clk 0:02:25.4]} 13. c4 {[%clk 0:02:45.3]} 13... a6
{[%clk 0:02:06.2]} 14. Nc3 {[%clk 0:02:45.1]} 14... Rhg8 {[%clk 0:02:04.3]} 15.
Rb1 {[%clk 0:02:33]} 15... Rc8 {[%clk 0:02:03.1]} 16. b3 {[%clk 0:02:07.1]}
16... h5 {[%clk 0:02:00.6]} 17. Na4 {[%clk 0:02:01.1]} 17... Qc7 {[%clk
0:01:59.6]} 18. Re1 {[%clk 0:01:44.3]} 18... h4 {[%clk 0:01:55.7]} 19. h3 {[%clk
0:01:44.8]} 19... Rg5 {[%clk 0:01:50.7]} 20. Nf3 {[%clk 0:01:38.6]} 20... Rg7
{[%clk 0:01:45.7]} 21. Nxh4 {[%clk 0:01:19.9]} 21... f5 {[%clk 0:01:44]} 22. Nf3
{[%clk 0:01:17.5]} 22... Rcg8 {[%clk 0:01:41.3]} 23. g3 {[%clk 0:01:13.9]} 23...
fxe4 {[%clk 0:01:31.4]} 24. Rxe4 {[%clk 0:01:14.1]} 24... d5 {[%clk 0:01:32]}
25. Rg4 {[%clk 0:01:14.4]} 25... Rxg4 {[%clk 0:01:31.4]} 26. hxg4 {[%clk
0:01:15.3]} 26... d4 {[%clk 0:01:08.5]} 27. Nxd4 {[%clk 0:01:05.4]} 27... Rh8
{[%clk 0:00:57]} 28. Kg2 {[%clk 0:00:34.8]} 28... Nxd4 {[%clk 0:00:53.8]} 29.
Qxd4 {[%clk 0:00:35.7]} 29... Qc6+ {[%clk 0:00:54]} 30. f3 {[%clk 0:00:36.4]}
30... Rd8 {[%clk 0:00:43.8]} 31. Qe3 {[%clk 0:00:34.4]} 31... Bf6 {[%clk
0:00:19.9]} 32. Qf4+ {[%clk 0:00:23.8]} 32... e5 {[%clk 0:00:19.4]} 33. Qe3
{[%clk 0:00:23]} 33... e4 {[%clk 0:00:17.6]} 34. fxe4 {[%clk 0:00:19.4]} 34...
Be5 {[%clk 0:00:16.9]} 35. Re1 {[%clk 0:00:17.2]} 35... Rg8 {[%clk 0:00:15.4]}
36. Qf3 {[%clk 0:00:15.3]} 36... Ka8 {[%clk 0:00:14.8]} 37. Rd1 {[%clk
0:00:11.5]} 37... Rh8 {[%clk 0:00:13.8]} 38. Rd5 {[%clk 0:00:11.1]} 38... f6
{[%clk 0:00:14]} 39. Nc5 {[%clk 0:00:09.2]} 39... Qe8 {[%clk 0:00:11.7]} 40. Nd3
{[%clk 0:00:08.7]} 40... Qe7 {[%clk 0:00:10.3]} 41. Nxe5 {[%clk 0:00:08.2]}
41... fxe5 {[%clk 0:00:11.2]} 42. Qf5 {[%clk 0:00:07.6]} 42... Qh7 {[%clk
0:00:11]} 43. Qxh7 {[%clk 0:00:07.5]} 43... Rxh7 {[%clk 0:00:11.6]} 44. Rxe5
{[%clk 0:00:08.4]} 44... Rd7 {[%clk 0:00:11.7]} 45. g5 {[%clk 0:00:09.1]} 45...
Rg7 {[%clk 0:00:10.7]} 46. g4 {[%clk 0:00:09.1]} 46... Kb8 {[%clk 0:00:11.6]}
47. Kf3 {[%clk 0:00:09.9]} 47... Kc7 {[%clk 0:00:12.2]} 48. Kf4 {[%clk
0:00:10.6]} 48... Kc6 {[%clk 0:00:12.8]} 49. Rf5 {[%clk 0:00:11.3]} 49... Rd7
{[%clk 0:00:12.9]} 50. g6 {[%clk 0:00:11.3]} 50... Rd1 {[%clk 0:00:13.8]} 51. g7
{[%clk 0:00:11.5]} 51... Rd8 {[%clk 0:00:13.3]} 52. Rf8 {[%clk 0:00:11.9]} 1-0